bitfinex-derivatives/quotes_ETHF0:USTF0_20240923
["timestamp","ask_amount","ask_price","bid_price","bid_amount"]
[1727053858483,3.2078,2607.1,2606.3,3.2078]
[1727053858484,3.59135,2607.1,2606.3,3.2078]
[1727053858778,3.59135,2607.1,2606.5,0.38363]
[1727053859082,0.38358,2606.9,2606.3,3.59145]
[1727053859276,3.2078,2607.1,2606.3,3.2078]
[1727053859483,0.38364,2606.5,2606.3,3.2078]
[1727053859679,1.60458,2606.8,2606.3,3.2078]
[1727053859975,1.60458,2606.8,2605.6,3.59155]
[1727053859976,0.38367,2606.3,2605.6,3.59155]
[1727053860178,3.2078,2606.6,2605.6,3.2078]
[1727053860369,3.2078,2606.6,2605.7,0.38374]
[1727053860572,3.2078,2606.6,2605.6,3.59156]
[1727053860778,0.38371,2606.0,2605.6,3.2078]
[1727053861084,3.2078,2606.2,2605.3,3.2078]
[1727053861388,0.95946,2605.5,2604.8,3.2078]
[1727053861568,0.38382,2605.3,2604.8,3.2078]
[1727053861768,4.16711,2605.9,2604.8,3.2078]
[1727053861979,4.16711,2605.9,2604.9,0.38387]
[1727053861980,3.2078,2605.5,2604.9,0.38387]
[1727053862372,3.2078,2605.5,2604.8,3.2078]
[1727053862580,1.2751,2606.0,2605.1,3.2078]
[1727053862581,3.59153,2605.9,2605.1,3.2078]
[1727053862877,0.38382,2605.3,2604.8,3.2078]
[1727053863083,0.38383,2605.2,2604.4,3.2078]
[1727053863377,3.2078,2605.3,2604.6,0.3839]
[1727053863785,3.2078,2605.3,2604.1,3.2078]
[1727053864078,0.38385,2605.1,2604.4,0.38393]
[1727053864283,0.38385,2605.1,2604.6,3.2078]
[1727053864490,0.6299,2605.2,2604.6,3.2078]
[1727053864671,0.6299,2605.2,2603.7,6.52257871]
[1727053864672,0.38396,2604.3,2604.1,3.2078]
[1727053864971,3.2078,2604.3,2603.6,3.2078]
[1727053865175,3.59176,2604.3,2603.6,3.2078]
[1727053865373,3.2078,2604.3,2603.6,3.2078]
[1727053865582,3.2078,2604.3,2603.8,0.38403]
[1727053865974,3.2078,2604.7,2604.0,3.2078]
[1727053866180,3.2078,2604.7,2603.7,3.2078]
[1727053866384,3.2078,2604.4,2603.7,3.2078]
[1727053866679,0.6469,2604.9,2603.7,3.2078]
[1727053866680,3.59171,2604.7,2603.7,3.2078]
[1727053866883,3.2078,2604.7,2603.7,3.2078]
[1727053867084,0.38396,2604.3,2603.7,3.2078]
[1727053867277,3.2078,2604.4,2603.7,3.2078]
[1727053867484,3.2078,2604.5,2603.7,3.2078]
[1727053867783,41.4469,2604.9,2603.1,3.59193]
[1727053867784,0.38402,2603.9,2603.1,3.59193]
[1727053868087,0.38405,2603.7,2603.0,3.802]
[1727053868279,0.38406,2603.6,2603.0,3.2078]
[1727053868587,0.3841,2603.4,2603.0,3.2078]
[1727053868888,3.2078,2603.8,2603.0,3.2078]
[1727053869180,3.2078,2603.8,2603.2,0.38411]
[1727053869386,3.2078,2603.8,2603.0,3.2078]
[1727053869576,0.38406,2603.6,2603.0,3.2078]
[1727053869899,0.38408,2603.5,2603.0,3.2078]
[1727053870287,0.38407,2603.6,2603.0,3.2078]
[1727053870581,3.2078,2603.8,2603.0,3.2078]
[1727053871082,0.96012,2603.7,2603.0,3.2078]
[1727053871284,3.2078,2603.6,2602.7,3.2078]
[1727053871592,3.2078,2603.3,2602.7,3.2078]
[1727053871883,3.2078,2603.3,2601.5,0.9609]
[1727053871884,3.2078,2602.9,2602.2,3.2078]
[1727053872078,0.38425,2602.4,2601.6,0.38435]
[1727053872276,3.2078,2602.5,2601.8,3.2078]
[1727053872477,3.2078,2602.5,2602.1,0.38427]
[1727053872691,3.2078,2602.5,2602.0,0.38429]
[1727053872878,3.2078,2602.5,2601.8,3.2078]
[1727053873079,3.86019,2603.6,2602.5,0.38422]
[1727053873080,3.2078,2603.1,2602.5,0.38422]
[1727053873279,0.38415,2603.0,2602.2,0.38426]
[1727053873482,3.2078,2602.8,2602.3,0.38425]
[1727053873796,0.38415,2603.0,2602.3,3.2078]
[1727053874085,3.2078,2603.1,2602.6,0.3842]
[1727053874591,3.2078,2603.1,2602.9,0.38416]
[1727053874792,3.2078,2603.1,2603.0,0.38415]
[1727053874984,0.38411,2603.3,2602.6,0.38421]
[1727053875191,0.38411,2603.3,2602.3,3.2078]
[1727053875379,0.38411,2603.3,2602.6,0.3842]
[1727053875584,0.38411,2603.3,2602.3,3.2078]
[1727053875585,4.16807,2603.3,2602.3,3.2078]
[1727053875793,0.38418,2602.8,2602.0,3.2078]
[1727053875979,3.2078,2602.9,2602.0,3.2078]
[1727053876581,3.2078,2602.6,2602.0,3.2078]
[1727053876781,3.2078,2602.6,2602.0,3.59209]
[1727053877184,3.59201,2602.6,2602.0,3.2078]
[1727053877379,0.6078,2603.2,2602.0,3.2078]
[1727053877380,4.16822,2602.9,2602.0,3.2078]
[1727053877579,3.59202,2602.6,2602.0,3.2078]
[1727053877787,3.2078,2602.6,2602.0,3.2078]
[1727053878390,0.6205,2602.8,2602.0,3.2078]
[1727053878890,0.6205,2602.8,2602.2,0.38426]
[1727053879086,0.6205,2602.8,2602.1,0.38427]
[1727053879284,1.00468,2602.8,2602.0,3.2078]
[1727053879489,3.2078,2603.0,2602.0,3.2078]
[1727053879698,3.2078,2603.0,2602.4,0.38423]
[1727053880087,3.2078,2603.0,2602.0,3.2078]
[1727053880298,1.09559821,2603.8,2602.6,3.2078]
[1727053880299,3.2078,2603.3,2602.6,3.2078]
[1727053880499,3.2078,2603.5,2603.1,0.38412]
[1727053880688,1.2311,2604.1,2602.8,3.2078]
[1727053880689,3.2078,2604.0,2602.8,3.2078]
[1727053880886,3.59181,2604.0,2603.3,0.38409]
[1727053881090,3.59181,2604.0,2603.4,0.38408]
[1727053881091,3.2078,2604.0,2603.4,0.38408]
[1727053881290,3.2078,2604.0,2603.1,3.2078]
[1727053881490,3.5918,2604.0,2603.1,3.2078]
[1727053881691,3.5918,2604.0,2603.4,0.38408]
[1727053882088,3.2078,2604.0,2603.5,0.38407]
[1727053882290,0.6265,2604.1,2603.4,3.2078]
[1727053882500,3.2078,2604.3,2603.4,3.2078]
[1727053882690,3.2078,2604.3,2603.7,3.2078]
[1727053883092,3.2078,2604.3,2603.7,0.38404]
[1727053883323,3.2078,2604.3,2603.9,0.38401]
[1727053883598,3.2078,2604.3,2603.5,0.6502]
[1727053883792,3.2078,2604.3,2603.7,3.2078]
[1727053884195,0.95964,2605.0,2604.0,0.384]
[1727053884196,0.38392,2604.6,2604.0,0.384]
[1727053884793,0.38392,2604.6,2604.1,0.38398]
[1727053885000,3.2078,2605.2,2604.0,3.2078]
[1727053885196,0.38384,2605.1,2604.5,0.38392]
[1727053885392,0.38384,2605.1,2603.8,0.96006]
[1727053885393,3.2078,2605.2,2604.9,0.38386]
[1727053885594,3.2078,2605.5,2604.8,0.38387]
[1727053885797,0.38379,2605.4,2604.8,0.38387]
[1727053886099,0.38379,2605.4,2604.5,0.38392]
[1727053886100,0.38386,2605.0,2604.5,0.38392]
[1727053886397,0.38393,2604.5,2603.9,0.38401]
[1727053886602,0.38393,2604.5,2603.5,3.858]
[1727053886897,3.2078,2604.6,2603.8,3.59183]
[1727053886898,0.38395,2604.4,2603.8,3.59183]
[1727053887095,0.38393,2604.5,2603.9,0.38401]
[1727053887295,0.6408,2604.9,2603.8,3.2078]
[1727053887498,0.38388,2604.8,2604.2,0.38397]
[1727053887698,0.38392,2604.6,2604.0,0.384]
[1727053887888,0.38392,2604.6,2603.9,0.384]
[1727053888198,0.6408,2604.9,2603.5,0.6502]
[1727053888199,0.38397,2604.3,2603.6,0.38405]
[1727053888397,3.59178,2604.2,2603.5,4.24206]
[1727053888604,0.38396,2604.3,2603.7,0.38404]
[1727053888896,0.38397,2604.2,2603.5,3.858]
[1727053889089,0.38395,2604.4,2603.7,0.38404]
[1727053889291,3.59175,2604.4,2603.7,0.38404]
[1727053889495,3.2078,2604.4,2603.5,4.24206]
[1727053889696,0.38398,2604.2,2603.6,0.38406]
[1727053889904,3.2078,2604.4,2603.6,0.38406]
[1727053890087,3.2078,2604.4,2603.5,4.24207]
[1727053890291,0.38403,2603.9,2603.5,3.2078]
[1727053890992,0.38401,2604.0,2603.5,3.2078]
[1727053891592,3.2078,2604.4,2603.5,3.2078]
[1727053892000,3.2078,2604.4,2603.6,0.5954]
[1727053892300,3.2078,2604.0,2603.1,3.2078]
[1727053892501,3.2078,2603.7,2603.1,3.2078]
[1727053892898,0.37406,2603.6,2603.1,3.2078]
[1727053893900,3.2078,2603.7,2603.1,3.2078]
[1727053893901,0.3841,2603.4,2603.1,3.2078]
[1727053894804,0.38411,2603.3,2602.7,1.03018]
[1727053895193,3.2078,2603.6,2602.7,0.646]
[1727053895194,4.16799,2603.6,2602.7,0.646]
[1727053895399,3.2078,2603.1,2602.3,3.2078]
[1727053895595,3.59193,2603.1,2602.4,0.38424]
[1727053895805,0.38411,2603.3,2602.7,0.38418]
[1727053895993,0.38411,2603.3,2602.5,0.38421]
[1727053895994,0.38414,2603.1,2602.5,0.38421]
[1727053896604,0.38414,2603.1,2602.3,3.59204]
[1727053896605,0.38417,2602.9,2602.3,3.59204]
[1727053896906,0.9603,2603.2,2602.3,3.2078]
[1727053896907,0.38412,2603.2,2602.3,3.2078]
[1727053897097,3.2078,2603.5,2602.8,0.38418]
[1727053897303,3.2078,2603.5,2602.6,3.2078]
[1727053897501,3.59188,2603.5,2603.0,0.38415]
[1727053897909,3.59188,2603.5,2602.9,0.38416]
[1727053898112,0.38411,2603.3,2602.8,0.38418]
[1727053898297,3.2078,2603.5,2602.3,3.8045]
[1727053898498,0.38414,2603.1,2602.5,0.38421]
[1727053898724,0.96023,2603.4,2602.6,0.3842]
[1727053898896,3.2078,2603.5,2602.6,0.3842]
[1727053898897,0.38413,2603.2,2602.6,0.3842]
[1727053899115,3.2078,2603.8,2602.9,2.9]
[1727053899298,3.59175,2604.4,2603.7,0.38404]
[1727053899493,3.2078,2604.9,2603.9,3.2078]
[1727053899699,3.59168,2604.9,2604.3,3.2078]
[1727053899898,3.2078,2604.9,2604.3,3.59174]
[1727053900114,3.2078,2604.9,2603.9,3.2078]
[1727053900115,0.38394,2604.4,2603.9,3.2078]
[1727053900299,0.95986,2604.4,2603.4,0.38408]
[1727053900494,0.95986,2604.4,2603.3,3.2078]
[1727053900495,3.2078,2604.2,2603.3,3.2078]
[1727053900704,3.2078,2604.2,2603.0,0.621]
[1727053900705,3.2078,2603.9,2603.0,3.8288]
[1727053901006,0.38408,2603.5,2603.0,3.8288]
[1727053901505,3.2078,2603.2,2602.6,3.2078]
[1727053902014,6.1078,2602.7,2601.5,3.2078]
[1727053902202,3.2078,2602.3,2601.7,3.2078]
[1727053902400,0.602,2602.2,2601.1,3.2078]
[1727053902608,3.2078,2602.3,2601.4,3.2078]
[1727053902802,3.2078,2602.3,2601.7,0.38433]
[1727053903002,3.2078,2602.6,2601.5,3.2078]
[1727053903203,0.602,2602.8,2601.5,3.2078]
[1727053903507,0.38421,2602.6,2601.7,0.38433]
[1727053903706,0.38421,2602.6,2601.5,3.59217]
[1727053903707,0.38425,2602.4,2601.5,3.59217]
[1727053903912,3.2078,2602.6,2601.8,0.38432]
[1727053904206,3.2078,2602.6,2601.8,3.2078]
[1727053904404,3.2078,2602.6,2602.1,0.38428]
[1727053904803,3.2078,2602.6,2602.1,3.59208]
[1727053905308,3.2078,2602.6,2602.1,3.2078]
[1727053905707,3.2078,2602.6,2602.4,0.38423]
[1727053906003,3.2078,2603.2,2602.5,3.8424]
[1727053906206,0.38412,2603.3,2602.5,0.38421]
[1727053906406,0.38412,2603.3,2602.4,3.2078]
[1727053906810,0.38412,2603.3,2602.6,0.38421]
[1727053907016,0.999,2603.4,2602.7,0.38418]
[1727053907203,0.3841,2603.3,2602.6,0.3842]
[1727053908319,3.59188,2603.5,2602.5,2.9]
[1727053908526,0.38409,2603.4,2602.7,0.38418]
[1727053909008,3.59188,2603.5,2602.8,0.38418]
[1727053909217,0.38411,2603.3,2602.6,0.3842]
[1727053909408,0.38409,2603.4,2602.7,0.38418]
[1727053910115,0.38409,2603.4,2602.8,0.38418]
[1727053911012,3.2078,2603.5,2603.1,0.38413]
[1727053911208,3.2078,2603.5,2603.2,0.38411]
[1727053911417,3.2078,2603.5,2603.3,0.3841]
[1727053912207,0.98917453,2603.8,2603.3,3.8408]
[1727053912410,4.58098453,2604.0,2603.5,0.38407]
[1727053912609,3.59181,2604.0,2603.5,0.38407]
[1727053912912,0.38402,2603.9,2603.2,3.2078]
[1727053913415,3.2078,2604.0,2603.7,0.38404]
[1727053913606,3.2078,2604.0,2603.5,0.38406]
[1727053913809,0.98917453,2604.2,2603.5,3.2078]
[1727053914017,2.49895157,2604.6,2603.8,3.2078]
[1727053914018,3.2078,2604.6,2603.8,3.2078]
[1727053914319,4.19697453,2604.8,2603.9,1.2236]
[1727053914525,3.2078,2604.4,2604.0,0.384]
[1727053914824,1.37309453,2604.6,2604.0,0.384]
[1727053915119,0.98917453,2604.7,2603.9,1.2236]
[1727053915422,0.38392,2604.6,2603.9,1.2236]
[1727053916216,0.38392,2604.6,2604.0,0.38399]
[1727053916417,0.3839,2604.7,2604.0,0.38399]
[1727053916716,4.58086453,2604.8,2604.1,0.38398]
[1727053916916,4.19697453,2604.8,2603.9,1.2236]
[1727053917232,2.87245547,2604.7,2604.0,0.38399]
[1727053917418,0.38391,2604.6,2603.5,3.2078]
[1727053917613,0.98917453,2604.7,2603.8,3.2078]
[1727053917809,2.12186115,2604.8,2604.2,0.38397]
[1727053918008,2.50574115,2604.8,2604.1,0.38397]
[1727053918216,2.50574115,2604.8,2603.8,3.2078]
[1727053918217,2.12186115,2604.8,2603.8,3.2078]
[1727053918424,2.50575115,2604.8,2604.2,0.38396]
[1727053918610,0.98917453,2605.0,2604.4,3.2078]
[1727053918811,4.70717094,2605.1,2604.4,3.2078]
[1727053918812,3.2078,2605.1,2604.4,3.2078]
[1727053919013,3.2078,2605.1,2604.1,3.2078]
[1727053919214,3.2078,2605.1,2604.4,0.38393]
[1727053919215,0.38386,2605.0,2604.4,0.38393]
[1727053919424,1.49937094,2604.6,2604.5,0.38392]
[1727053919918,0.99911165,2604.6,2604.5,10.22312]
[1727053920823,1.49937094,2604.6,2604.4,3.2078]
[1727053921123,0.99892777,2604.5,2604.1,3.2078]
[1727053921316,0.99892777,2604.6,2604.5,0.38393]
[1727053921508,0.99892777,2604.6,2604.5,6.38393]
[1727053921720,1.49882596,2604.9,2604.8,0.38388]
[1727053922015,1.49882596,2605.0,2604.9,0.38387]
[1727053922413,1.49882596,2605.1,2605.0,0.38385]
[1727053922623,1.88262596,2605.4,2605.0,7.6695]
[1727053922826,1.49882596,2605.3,2605.0,3.8311]
[1727053923021,1.49882596,2605.2,2605.0,3.8311]
[1727053923213,1.49882596,2605.2,2604.8,0.38388]
[1727053923419,1.88265596,2605.2,2604.6,3.2078]
[1727053923711,1.49882596,2605.2,2605.0,0.38385]
[1727053923915,1.49882596,2605.3,2605.2,0.38382]
[1727053924111,1.88264596,2605.3,2604.9,3.59166]
[1727053924318,1.49882596,2605.3,2605.0,0.38385]
[1727053924527,1.49882596,2605.2,2604.9,3.2078]
[1727053924722,1.49882596,2605.2,2605.1,0.38384]
[1727053925021,1.4970148,2605.2,2604.6,3.2078]
[1727053925215,1.4970148,2605.1,2604.9,0.38387]
[1727053925418,0.38386,2605.0,2604.7,0.3839]
[1727053925616,0.01,2604.7,2604.6,3.5917]
[1727053925816,0.3939,2604.7,2604.6,3.2078]
[1727053926017,0.3939,2604.7,2604.0,3.2078]
[1727053926018,15.05616126,2604.7,2604.0,3.2078]
[1727053926217,1.49732113,2604.4,2604.1,0.38398]
[1727053926527,0.01,2604.7,2604.1,0.38398]
[1727053926727,3.2178,2604.7,2604.0,3.2078]
[1727053926924,3.2178,2604.7,2604.3,0.38395]
[1727053926925,0.39391,2604.7,2604.3,0.38395]
[1727053927223,0.39391,2604.7,2604.0,3.2078]
[1727053927224,0.01,2604.7,2604.0,3.2078]
[1727053927429,0.01,2604.7,2604.6,0.38391]
[1727053927619,0.01,2604.7,2604.1,3.2078]
[1727053928216,0.38392,2604.6,2604.1,3.2078]
[1727053928416,0.38392,2604.6,2604.2,0.38397]
[1727053928626,0.01,2604.7,2604.2,0.38397]
[1727053928825,0.3939,2604.7,2604.3,0.38396]
[1727053929125,0.01,2604.7,2604.4,3.2078]
[1727053929320,0.01,2604.7,2604.0,3.2078]
[1727053929824,0.01,2604.7,2604.5,0.38392]
[1727053930252,0.01,2604.7,2604.4,0.38393]
[1727053930426,0.38392,2604.6,2604.2,0.38396]
[1727053930933,0.01,2604.7,2604.6,0.38391]
[1727053931320,0.01,2604.7,2604.6,13.43091]
[1727053931525,0.6543,2605.5,2605.3,0.3838]
[1727053931719,3.8621,2605.5,2605.3,0.3838]
[1727053931937,3.2078,2605.5,2604.7,0.95975]
[1727053932122,3.2078,2605.5,2605.2,0.38381]
[1727053932519,3.59158,2605.5,2605.1,0.38383]
[1727053932726,3.59158,2605.5,2605.2,0.38382]
[1727053932920,3.2078,2605.5,2604.8,0.95971]
[1727053933120,0.6256,2605.8,2605.3,0.3838]
[1727053933121,0.38376,2605.7,2605.3,0.3838]
[1727053933328,0.38376,2605.7,2605.2,3.2078]
[1727053933329,0.6512,2606.0,2605.2,3.2078]
[1727053933625,5.66431113,2606.3,2605.8,0.38373]
[1727053933626,0.38368,2606.2,2605.8,0.38373]
[1727053933826,3.2078,2606.3,2605.3,6.7412]
[1727053934034,0.3837,2606.1,2605.7,0.38374]
[1727053934231,3.2078,2606.3,2605.3,3.8412]
[1727053934441,0.38373,2605.9,2605.4,0.38379]
[1727053934736,0.38371,2606.0,2605.5,0.38378]
[1727053934930,0.38373,2605.9,2605.4,0.38379]
[1727053935433,0.38371,2606.0,2605.5,0.38377]
[1727053935732,0.3837,2606.1,2605.6,0.38376]
[1727053936525,3.2078,2606.3,2605.7,3.8376]
[1727053936721,3.2078,2606.3,2605.6,3.2078]
[1727053936931,3.2078,2606.3,2606.0,0.3837]
[1727053937121,1.2768,2606.7,2605.6,3.2078]
[1727053937122,3.859,2606.7,2606.1,3.2078]
[1727053937323,3.2078,2606.7,2606.1,3.2078]
[1727053937531,3.2078,2606.7,2606.6,0.38362]
[1727053938236,3.8357,2607.4,2607.0,0.38355]
[1727053938429,0.6279,2607.4,2607.1,0.38354]
[1727053938737,0.38346,2607.7,2607.3,0.38351]
[1727053939036,0.38351,2607.4,2607.0,0.38355]
[1727053939424,0.38351,2607.4,2607.0,0.38356]
[1727053939627,3.2078,2607.7,2606.9,0.655]
[1727053939844,3.59127,2607.7,2607.2,0.38352]
[1727053940129,11.23860953,2608.6,2607.2,0.38352]
[1727053940130,3.8488,2608.1,2607.2,3.2078]
[1727053940337,3.8488,2608.1,2607.5,3.2078]
[1727053940539,3.2078,2608.6,2607.8,2.9]
[1727053940729,0.95824,2608.9,2607.9,3.2078]
[1727053940730,0.38329,2608.9,2607.9,3.2078]
[1727053941034,0.38329,2608.9,2608.1,2.9]
[1727053941331,0.38329,2608.9,2608.3,0.38335]
[1727053941533,0.38332,2608.7,2608.1,2.9]
[1727053941731,3.2078,2609.0,2608.1,0.38339]
[1727053941930,3.2078,2609.0,2607.9,3.8307]
[1727053941931,0.38332,2608.7,2608.2,0.38338]
[1727053942125,3.59112,2608.7,2608.2,0.38338]
[1727053942329,0.38329,2608.8,2608.3,0.38337]
[1727053942534,0.38332,2608.6,2608.0,0.38341]
[1727053942731,0.38332,2608.7,2608.1,0.38339]
[1727053943132,4.16601,2608.9,2607.9,4.21412]
[1727053943328,0.38344,2607.9,2607.6,3.2078]
[1727053943533,0.38346,2607.7,2607.6,3.2078]
[1727053943736,0.38343,2607.9,2607.6,3.2078]
[1727053944239,3.59122,2608.0,2607.6,3.2078]
[1727053944439,0.38343,2607.9,2607.4,0.38349]
[1727053944738,3.2078,2608.0,2607.3,0.38351]
[1727053944946,0.38347,2607.7,2607.1,0.38353]
[1727053945126,0.38345,2607.8,2607.2,0.38352]
[1727053945326,3.2078,2608.0,2607.3,0.3835]
[1727053945526,0.38337,2608.4,2607.8,0.38344]
[1727053945731,3.2078,2608.5,2607.9,0.38343]
[1727053946038,3.2078,2608.5,2608.0,0.38341]
[1727053946240,0.38335,2608.5,2608.0,0.38341]
[1727053946430,0.38333,2608.6,2607.6,3.2078]
[1727053946632,0.38336,2608.4,2607.8,0.38343]
[1727053946832,3.2078,2608.2,2607.3,3.2078]
[1727053947135,0.38336,2608.4,2607.8,0.38343]
[1727053947537,3.2078,2608.5,2607.4,0.3835]
[1727053947738,1.2865,2608.7,2607.8,0.38343]
[1727053947739,0.38336,2608.4,2607.8,0.38343]
[1727053947935,3.2078,2608.6,2607.5,3.2078]
[1727053948244,3.2078,2608.3,2607.4,0.38349]
[1727053948538,0.3834,2608.1,2607.5,0.38348]
[1727053948735,3.2078,2608.3,2607.6,0.38347]
[1727053948939,3.59118,2608.3,2607.7,0.38345]
[1727053949136,0.38338,2608.2,2607.6,0.38346]
[1727053949342,0.3834,2608.1,2607.6,0.38346]
[1727053949532,3.2078,2608.3,2607.6,0.38347]
[1727053949732,3.2078,2608.3,2607.9,0.38343]
[1727053949941,3.2078,2608.3,2607.7,0.38345]
[1727053950127,0.38342,2608.0,2607.5,0.38348]
[1727053950431,0.38342,2608.0,2607.2,3.8273]
[1727053950432,0.38341,2608.1,2607.6,0.38347]
[1727053951032,3.2078,2608.3,2607.2,3.8273]
[1727053951226,3.2078,2608.3,2607.5,3.2078]
[1727053951227,0.38343,2607.9,2607.5,3.2078]
[1727053951932,0.38342,2608.0,2607.5,3.59127]
[1727053952345,3.59119,2608.2,2607.7,0.38345]
[1727053952643,0.3834,2608.1,2607.6,0.38346]
[1727053952937,0.38342,2608.0,2607.5,3.2078]
[1727053953336,3.2078,2608.1,2607.5,3.2078]
[1727053953538,3.2078,2608.1,2606.8,0.6644]
[1727053953539,0.38353,2607.2,2606.8,0.6644]
[1727053953737,3.2078,2607.6,2607.2,0.38352]
[1727053953938,3.2078,2607.6,2607.0,6.1078]
[1727053954237,3.2078,2607.6,2607.3,0.38351]
[1727053954441,3.2078,2607.6,2607.4,0.38349]
[1727053954637,0.38342,2608.0,2607.5,0.38348]
[1727053955032,0.38342,2608.0,2607.0,6.1078]
[1727053955238,0.9584,2608.4,2607.6,0.38346]
[1727053955446,0.38342,2608.0,2607.0,6.1078]
[1727053955739,3.2078,2608.2,2607.2,3.2078]
[1727053956045,0.38345,2607.8,2607.4,0.3835]
[1727053956336,0.38346,2607.7,2607.4,0.3835]
[1727053956540,0.38345,2607.8,2607.4,0.3835]
[1727053956734,0.38343,2607.9,2607.5,0.38348]
[1727053956938,0.38345,2607.8,2607.4,0.38349]
[1727053957337,0.38347,2607.6,2607.2,3.59132]
[1727053957844,0.38342,2608.0,2607.6,0.38346]
[1727053958240,3.2078,2608.2,2607.4,6.1078]
[1727053958543,3.2078,2608.2,2607.9,0.38342]
[1727053958743,3.2078,2608.2,2607.5,2.58]
[1727053958744,3.2078,2608.5,2607.5,7.46487605]
[1727053958942,0.38336,2608.4,2608.1,0.38339]
[1727053959349,0.38334,2608.5,2608.1,0.38338]
[1727053959851,0.38334,2608.5,2608.2,0.38338]
[1727053960142,0.14119785,2609.5,2608.4,3.2078]
[1727053960344,0.14119785,2609.5,2607.7,0.18878022]
[1727053960345,1.38239785,2609.5,2608.8,3.2078]
[1727053960541,1.2412,2609.5,2608.8,3.2078]
[1727053960740,0.38324,2609.2,2608.8,3.59109]
[1727053961345,1.2412,2609.5,2608.8,3.59109]
[1727053961645,3.2078,2609.9,2609.5,0.38318]
[1727053961842,0.38316,2609.8,2609.2,6.17103]
[1727053962037,0.38316,2609.8,2609.2,5.7878]
[1727053962242,3.2078,2609.9,2609.3,0.38322]
[1727053962635,3.2078,2609.9,2609.2,3.2078]
[1727053963042,3.2078,2609.9,2609.4,0.3832]
[1727053963845,3.2078,2609.9,2609.2,3.2078]
[1727053964048,3.2078,2609.9,2609.1,2.9]
[1727053964049,3.2078,2609.9,2609.5,3.2078]
[1727053964349,0.38319,2609.6,2608.7,6.7318]
[1727053964549,3.2078,2609.9,2608.7,6.7318]
[1727053964848,3.2078,2609.5,2608.6,0.38332]
[1727053965043,0.6185,2609.4,2608.4,3.2078]
[1727053965252,0.38322,2609.3,2608.7,3.2078]
[1727053965451,0.38324,2609.2,2608.7,3.5911]
[1727053965846,0.38322,2609.3,2608.7,3.5911]
[1727053966042,0.38328,2608.9,2608.4,3.2078]
[1727053966248,3.2078,2609.1,2608.4,3.2078]
[1727053966448,3.2078,2609.1,2608.0,0.6616]
[1727053966449,0.38332,2608.7,2608.1,3.59119]
[1727053966646,0.38332,2608.7,2608.2,0.38338]
[1727053966948,0.38328,2609.0,2608.4,0.38335]
[1727053967348,0.38326,2609.1,2608.5,0.38333]
[1727053968047,0.6185,2609.4,2608.3,2.9]
[1727053968254,3.8263,2609.4,2608.5,0.38333]
[1727053968644,3.8263,2609.4,2608.4,3.2078]
[1727053968956,0.38322,2609.3,2608.7,0.38331]
[1727053969154,0.38326,2609.1,2608.5,0.38333]
[1727053969660,3.2078,2608.7,2608.0,1.3294]
[1727053969849,3.2078,2608.1,2607.4,0.6583]
[1727053970050,0.38343,2607.9,2607.4,1.04179]
[1727053970361,0.38346,2607.7,2607.2,1.03962]
[1727053970750,0.38346,2607.7,2607.2,0.6561]
[1727053971046,4.16632,2608.1,2607.2,0.6561]
[1727053971047,0.38345,2607.8,2607.2,0.6561]
[1727053971246,0.38345,2607.8,2607.3,0.38351]
[1727053971650,0.38346,2607.7,2607.2,1.03963]
[1727053971847,3.2078,2607.8,2607.2,0.6561]
[1727053972152,0.38346,2607.7,2607.2,1.03962]
[1727053972946,3.2078,2607.7,2607.2,0.6561]
[1727053973149,0.38345,2607.8,2607.3,0.38351]
[1727053973347,3.2078,2608.1,2607.5,3.2078]
[1727053973549,0.38344,2607.9,2607.3,3.28351]
[1727053973755,4.16632,2608.1,2607.2,3.8639]
[1727053974054,0.95843,2608.3,2607.2,3.8639]
[1727053974055,3.2078,2607.9,2607.2,3.8639]
[1727053974562,0.38344,2607.8,2607.2,3.8639]
[1727053974955,3.2078,2607.9,2607.2,3.8639]
[1727053975151,3.2078,2607.9,2607.5,0.38348]
[1727053975754,3.2078,2607.9,2607.3,2.9]
[1727053975954,3.59123,2607.9,2607.4,0.38349]
[1727053976154,3.2078,2607.9,2607.5,0.38348]
[1727053976555,3.2078,2607.9,2607.3,2.9]
[1727053976751,0.38346,2607.7,2607.2,4.24742]
[1727053977154,0.38348,2607.6,2607.2,3.8639]
[1727053977358,3.2078,2607.9,2607.8,0.38344]
[1727053977757,0.6352,2608.4,2607.8,9.8344]
[1727053978055,42.79916126,2609.3,2607.8,6.1078]
[1727053978056,3.2078,2608.9,2607.8,6.1078]
[1727053978263,0.3833,2608.8,2607.9,0.38342]
[1727053978454,0.38339,2608.2,2607.7,0.6729]
[1727053978650,3.2078,2608.5,2607.7,1.05635]
[1727053978651,0.38338,2608.3,2607.7,1.05635]
[1727053978850,0.38338,2608.3,2607.7,0.6729]
[1727053979164,0.38332,2608.6,2607.8,2.9]
[1727053979457,3.2078,2608.7,2608.0,0.3834]
[1727053979458,3.59112,2608.7,2608.0,0.3834]
[1727053980489,3.8697,2609.1,2608.0,3.2078]
[1727053980953,0.38333,2608.6,2608.0,3.2078]
[1727053981154,0.38331,2608.7,2608.0,3.59121]
[1727053981461,3.2078,2608.8,2608.3,3.2078]
[1727053982257,3.2078,2608.8,2608.4,0.38335]
[1727053982470,3.2078,2608.8,2608.3,3.2078]
[1727053982655,3.2078,2608.8,2608.0,0.6439]
[1727053982857,4.70512113,2608.8,2608.0,0.6439]
[1727053983056,1.49732113,2608.7,2608.0,0.6439]